fUSD/lending_fUSD_20240813
["ID","MTS","AMOUNT","RATE_DAILY","PERIOD"]
[334771970,1723542644661,-500.0,0.00021164,2]
[334771972,1723542644672,-2472.29168674,0.00021789,2]
[334771974,1723542644681,-6439.71309109,0.0002188,2]
[334771990,1723542644831,-45155.85600992,0.0002188,2]
[334771992,1723542644844,-5427.19204843,0.0002188,2]
[334771995,1723542644858,-1684.53,0.0002188,2]
[334771997,1723542644870,-1748.56626615,0.0002188,2]
[334771999,1723542644887,-1120.0285415,0.0002188,2]
[334772002,1723542644901,-560.58454009,0.0002188,2]
[334772004,1723542644914,-562.18068914,0.0002188,2]
[334772006,1723542644928,-2325.34922941,0.0002188,2]
[334772008,1723542644941,-43756.18194634,0.0002188,2]
[334772067,1723542645525,-9700.7442,0.0002188,2]
[334772071,1723542645546,-304.83825639,0.00017533,2]
[334772073,1723542645558,-10708.16174361,0.0002188,2]
[334772130,1723542646152,-233.58186354,0.000109,2]
[334772132,1723542646163,-546.83834329,0.00013579,2]
[334772134,1723542646174,-830.66467726,0.0002188,2]
[334772141,1723542646242,-11064.084,0.0002188,2]
[334772143,1723542646255,-771.34426196,0.0002188,2]
[334772800,1723542987577,400.0,0.00025149,120]
[334772801,1723543594193,200.0,0.0002538,120]
[334772809,1723543832326,-316.77347451,0.00013283,2]
[334772810,1723543832336,-370.6658017,0.00013297,2]
[334772811,1723543832350,-305.95,0.00013698,2]
[334772812,1723543832359,-300.0,0.00014992,2]
[334772813,1723543832369,-12496.9337,0.00014993,2]
[334772814,1723543832379,-244.03,0.0001538,2]
[334772815,1723543832389,-155.0,0.00016033,2]
[334772816,1723543832399,-1000.0,0.00016393,2]
[334772817,1723543832408,-420.0,0.00016491,2]
[334772818,1723543832418,-499.99,0.00016599,2]
[334772819,1723543832428,-32364.2297,0.000167,2]
[334772820,1723543832437,-2424.7847,0.000168,2]
[334772821,1723543832448,-236.64,0.00016837,2]
[334772822,1723543832458,-1362.44,0.00016837,2]
[334772823,1723543832468,-450.0,0.00016886,2]
[334772824,1723543832478,-200.0,0.00016887,2]
[334772825,1723543832488,-1294.31,0.00016887,5]
[334772826,1723543832499,-487.54,0.00016887,2]
[334772827,1723543832509,-167.0,0.00016903,2]
[334772828,1723543832519,-200.0,0.0001692,2]
[334772829,1723543832529,-250.0,0.00016929,2]
[334772830,1723543832539,-1764.43455926,0.00017004,2]
[334772831,1723543832549,-172.29,0.00017031,2]
[334772832,1723543832559,-1298.83,0.00017057,2]
[334772833,1723543832568,-697.83,0.00017078,2]
[334772834,1723543832577,-250.0,0.00017286,2]
[334772835,1723543832591,-2751.0,0.00017298,2]
[334772836,1723543832609,-1154.76,0.00017311,2]
[334772837,1723543832622,-23900.0,0.00017316,2]
[334772838,1723543832635,-167.0,0.00017461,2]
[334772839,1723543832648,-150.0,0.00017592,2]
[334772840,1723543832660,-211.03413449,0.00017608,2]
[334772841,1723543832674,-244.03,0.00017644,2]
[334772842,1723543832686,-719.76629968,0.00017782,2]
[334772843,1723543832698,-1533.40124316,0.00017807,2]
[334772844,1723543832708,-173.97,0.0001795,2]
[334772845,1723543832719,-167.0,0.00018019,2]
[334772846,1723543832729,-665.97527808,0.00018079,30]
[334772847,1723543832739,-1042.00659292,0.00018081,2]
[334772848,1723543832750,-168.40191799,0.00018176,2]
[334772849,1723543832762,-624.46552432,0.00018176,2]
[334772850,1723543832773,-638.31110042,0.00018176,3]
[334772851,1723543832784,-1000.0,0.00018252,2]
[334772852,1723543832795,-400.0,0.0001829,2]
[334772853,1723543832806,-165.44,0.00018301,2]
[334772854,1723543832817,-207.83,0.00018467,2]
[334772855,1723543832828,-676.43950239,0.00018499,2]
[334772856,1723543832839,-547.87854217,0.00018529,2]
[334772857,1723543832853,-308.30308565,0.00018529,2]
[334772858,1723543832865,-179.4623719,0.00018529,2]
[334772859,1723543832877,-165.48000385,0.00018547,2]
[334772860,1723543832889,-155.0,0.00018547,2]
[334772861,1723543832899,-167.0,0.00018577,2]
[334772862,1723543832911,-200.0,0.00018593,2]
[334772863,1723543832922,-2533.75911352,0.000186,2]
[334772864,1723543832934,-494.45833742,0.00018845,2]
[334772865,1723543832945,-2500.0,0.000189,2]
[334772866,1723543832957,-647.05351092,0.00019,2]
[334772867,1723543832968,-167.0,0.00019135,2]
[334772868,1723543832979,-494.45833734,0.00019518,2]
[334772869,1723543832990,-167.0,0.00019693,2]
[334772870,1723543833001,-2386.36839346,0.00019725,2]
[334772871,1723543833011,-706.5476,0.000198,2]
[334772872,1723543833022,-2275.49215244,0.00019808,2]
[334772873,1723543833038,-200.0,0.00019873,2]
[334772874,1723543833049,-6920.13993676,0.00019899,2]
[334772875,1723543833061,-571.17837316,0.00019899,2]
[334772876,1723543833073,-304544.0,0.000199,2]
[334772877,1723543833085,-244.03,0.00019908,2]
[334772878,1723543833099,-869.13101619,0.0002,2]
[334772879,1723543833111,-1285.05011552,0.0002,2]
[334772880,1723543833123,-155.0,0.0002,2]
[334772881,1723543833135,-626.77938752,0.0002,2]
[334772882,1723543833147,-155.0,0.0002,2]
[334772883,1723543833158,-6294.99597718,0.0002,2]
[334772884,1723543833170,-17839.65072931,0.0002,2]
[334772885,1723543833181,-155.0,0.0002,2]
[334772886,1723543833192,-327.27627059,0.0002002,2]
[334772887,1723543833204,-155.0,0.00020109,2]
[334772888,1723543833214,-155.0,0.0002012,2]
[334772889,1723543833224,-494.45833734,0.00020191,2]
[334772890,1723543833236,-100057.0984,0.000202,2]
[334772891,1723543833246,-16563.5000529,0.0002029,4]
[334772892,1723543833256,-300.0,0.0002038,2]
[334772893,1723543833267,-531.16504504,0.0002038,2]
[334772894,1723543833279,-11499.0,0.000204,3]
[334772895,1723543833290,-546.83834329,0.00020439,2]
[334772896,1723543833301,-367.27732127,0.00020439,2]
[334772897,1723543833313,-1185.00118368,0.00020439,2]
[334772898,1723543833324,-1000.0,0.00020534,2]
[334772899,1723543833336,-2275.49215244,0.00020535,2]
[334772900,1723543833351,-400.0,0.00020577,2]
[334772901,1723543833362,-1882.58050065,0.00020589,2]
[334772902,1723543833374,-494.45833734,0.00020863,2]
[334772903,1723543833386,-11499.0,0.000209,5]
[334772904,1723543833397,-225.767077,0.00021,2]
[334772905,1723543833408,-228.87032814,0.00021164,2]
[334772906,1723543833419,-1518.0,0.000212,2]
[334772907,1723543833430,-400.0,0.00021242,2]
[334772908,1723543833441,-2275.49215244,0.00021263,2]
[334772909,1723543833453,-1012.43520942,0.00021442,2]
[334772910,1723543833465,-494.45833734,0.00021536,2]
[334772911,1723543833476,-267.9043698,0.000217,2]
[334772912,1723543833487,-160.95450747,0.00021777,2]
[334772913,1723543833499,-264.37011278,0.00021779,2]
[334772914,1723543833510,-217.0,0.0002178,2]
[334772915,1723543833520,-207331.32386075,0.0002178,2]
[334772916,1723543833533,-600.0,0.0002178,2]
[334772917,1723543833560,-1406.25774236,0.00017399,2]
[334772918,1723543833570,-4668.74225764,0.0002178,2]
[334772919,1723543833582,-700.0,0.0002178,2]
[334772922,1723543838377,-155.0,0.00015999,2]
[334772923,1723543838387,-711.82892756,0.00019599,2]
[334772924,1723543838526,-327.83546747,0.00019599,2]
[334772925,1723543838568,-1346.70399843,0.00019599,2]
[334772926,1723543838578,-500.0,0.00020089,2]
[334772927,1723543838588,-196.42373295,0.00020363,2]
[334772928,1723543838599,-270.876,0.00021341,2]
[334772929,1723543838610,-126.66817747,0.0002177,2]
[334772930,1723543838711,-167.00182253,0.0002177,2]
[334772931,1723543838722,-293.67,0.0002177,2]
[334772932,1723543838732,-97.22183114,0.0002177,2]
[334772933,1723543838744,-196.44816886,0.0002177,2]
[334772934,1723543838756,-26250.93351966,0.0002178,2]
[334772935,1723543838769,-5979.78453988,0.0002178,2]
[334772936,1723543838783,-33740.1538901,0.0002178,2]
[334772972,1723543840319,-293.67,0.0002177,2]
[334772973,1723543840331,-293.67,0.0002177,2]
[334772974,1723543840342,-293.67,0.0002177,2]
[334772975,1723543840354,-293.67,0.0002177,2]
[334772976,1723543840367,-293.67,0.0002177,2]
[334772977,1723543840377,-293.67,0.0002177,2]
[334772978,1723543840388,-293.67,0.0002177,2]
[334772979,1723543840399,-3021.45760424,0.0002178,2]
[334772980,1723543840559,-44561.46881341,0.0002178,2]
[334772981,1723543840602,-588.950825,0.0002178,2]
[334772982,1723543840644,-2037.00551806,0.0002178,2]
[334773025,1723543844232,-293.67,0.0002177,2]
[334773026,1723543844246,-293.67,0.0002177,2]
[334773027,1723543844255,-237.21289204,0.0002177,2]
[334773028,1723543844267,-56.45710796,0.0002177,2]
[334773029,1723543844276,-293.67,0.0002177,2]
[334773030,1723543844287,-253.22879759,0.0002177,2]
[334773031,1723543844302,-40.44120241,0.0002177,2]
[334773032,1723543844312,-293.67,0.0002177,2]
[334773033,1723543844322,-293.67,0.0002177,2]
[334773034,1723543844331,-293.67,0.0002177,2]
[334773035,1723543844341,-60365.29879759,0.0002178,2]
[334773036,1723543844352,-467.40676096,0.0002178,2]
[334773037,1723543846348,-624.46552432,0.00018176,2]
[334773038,1723543846361,-155.72124236,0.00021755,2]
[334773039,1723543846370,-293.67,0.0002177,2]
[334773040,1723543846380,-293.67,0.0002177,2]
[334773041,1723543846389,-293.67,0.0002177,2]
[334773042,1723543846399,-293.67,0.0002177,2]
[334773043,1723543846408,-293.67,0.0002177,2]
[334773044,1723543846418,-293.67,0.0002177,2]
[334773045,1723543846428,-293.67,0.0002177,2]
[334773046,1723543846437,-293.67,0.0002177,2]
[334773047,1723543846447,-293.67,0.0002177,2]
[334773048,1723543846456,-293.67,0.0002177,2]
[334773049,1723543846466,-293.67,0.0002177,2]
[334773050,1723543846476,-293.67,0.0002177,2]
[334773051,1723543846486,-19019.40033681,0.0002178,2]
[334773052,1723543846496,-118589.83058352,0.0002178,2]
[334773053,1723543846508,-3953.85977228,0.0002178,2]
[334773054,1723543846520,-638.98582292,0.0002178,2]
[334773057,1723544067820,240.0,0.00025749,120]
[334773058,1723544560090,208.0,0.00026389,120]
[334773078,1723545032462,-2448.9258045,0.000102,3]
[334773079,1723545032473,-613.02289588,0.000102,3]
[334773080,1723545032615,-338.05129962,0.000102,3]
[334773081,1723545032625,-3186.14838088,0.000103,3]
[334773082,1723545032636,-3713.85161912,0.000103,3]
[334773083,1723545032645,-10300.0,0.000104,3]
[334773084,1723545032655,-13800.0,0.000105,3]
[334773085,1723545032664,-14286.14838088,0.000106,3]
[334773186,1723545038626,-2913.85161912,0.000106,3]
[334773187,1723545038637,-3400.0,0.000107,3]
[334773188,1723545038647,-3400.0,0.000108,3]
[334773189,1723545038656,-3400.0,0.000109,3]
[334773190,1723545038667,-324.30043524,0.000109,2]
[334773191,1723545038676,-7285.74245473,0.000109,2]
[334773192,1723545038687,-379.6275439,0.000109,2]
[334773193,1723545038702,-733.80743183,0.000109,2]
[334773194,1723545038714,-597.24,0.000109,2]
[334773195,1723545038734,-298.41728368,0.000109,2]
[334773196,1723545038745,-280.407,0.000109,2]
[334773197,1723545038757,-418.54784018,0.000109,2]
[334773198,1723545038769,-556.34975306,0.000109,2]
[334773199,1723545038783,-1324.0034185,0.000109,2]
[334773200,1723545038793,-16.00836705,0.000109,2]
[334773201,1723545038805,-949.03719993,0.000109,2]
[334773202,1723545038814,-422.69,0.00010959,2]
[334773203,1723545038824,-499.99,0.00010999,2]
[334773204,1723545038834,-185.05907894,0.00010999,2]
[334773205,1723545038843,-3184.35447732,0.00011,2]
[334773206,1723545038855,-1921.952907,0.00011,2]
[334773207,1723545038900,-339412.91696051,0.00011,2]
[334773208,1723545038910,-7861073.96495847,0.00011,2]
[334773209,1723545038921,-3938.81999992,0.00011,2]
[334773210,1723545038932,-348.12041356,0.00011,2]
[334773211,1723545038944,-4522.71124739,0.00011,2]
[334773212,1723545038959,-2611.44251202,0.00011,2]
[334773213,1723545038972,-2993.0852802,0.00011,2]
[334773214,1723545038983,-888.51999758,0.00011,2]
[334773215,1723545038994,-47645.499317,0.00011,2]
[334773368,1723545040574,-1700.0,0.000101,3]
[334773370,1723545040584,-48892.57503331,0.00011,2]
[334773374,1723545040613,-449.14751806,0.00011,2]
[334773389,1723545040765,-13042.14392744,0.00011,2]
[334773405,1723545040919,-1515.73696059,0.00011,2]
[334773566,1723545043484,-3500.0,0.000102,3]
[334773567,1723545043498,-1581477.98828509,0.00011,2]
[334773568,1723545043513,-835.04991627,0.00011,2]
[334773569,1723545043528,-899.3916763,0.00011,2]
[334773570,1723545043672,-668.94796656,0.00011,2]
[334773571,1723545043685,-695.84866301,0.00011,2]
[334773572,1723545043702,-489.29187735,0.00011,2]
[334773574,1723545043716,-1579.72210345,0.00011,2]
[334773575,1723545043738,-3310.54885329,0.00011,2]
[334773576,1723545043752,-3799.999993,0.00011,2]
[334773577,1723545043766,-2743.43994,0.00011,2]
[334773578,1723545043779,-23008.90933301,0.00011,2]
[334773579,1723545043794,-7716.5106679,0.00011,2]
[334773580,1723545043810,-816.87853543,0.00011,2]
[334773582,1723545043824,-2010.08945596,0.00011,2]
[334773620,1723545044720,-96110.7811272,0.00011,2]
[334773621,1723545044734,-1130.77964873,0.00011,2]
[334773630,1723545046465,-675.11842941,0.000103,3]
[334773631,1723545046512,-4524.88157059,0.000103,3]
[334773632,1723545046523,-3805.0128341,0.000109,2]
[334773633,1723545046533,-14769.01065759,0.00011,2]
[334773634,1723545046548,-39037.12957447,0.00011,2]
[334773635,1723545046568,-38824.55601128,0.00011,2]
[334773636,1723545046581,-18936.81130913,0.00011,2]
[334773637,1723545046594,-111006.47196711,0.00011,2]
[334773638,1723545046607,-315.79999999,0.00011,2]
[334773639,1723545046623,-1174.44002,0.00011,2]
[334773640,1723545046636,-1650.24238056,0.00011,2]
[334773641,1723545046660,-3348.50149363,0.00011,2]
[334773642,1723545046673,-401.25841321,0.00011,2]
[334773643,1723545046685,-9005.22703204,0.00011,2]
[334773644,1723545046699,-1470.8494084,0.00011,2]
[334773645,1723545046712,-310.0,0.00011,2]
[334773646,1723545046738,-470.8,0.00011,2]
[334773647,1723545394519,116800.0,0.00027,120]
[334773648,1723545481379,235.75,9.172e-05,2]
[334773649,1723545481408,48.07,9.172e-05,2]
[334773653,1723545531586,227.78421077,9.172e-05,2]
[334773654,1723545538592,20396.1727788,9.172e-05,2]
[334773655,1723545636563,227.78421077,9.172e-05,2]
[334773656,1723545640608,20408.47029117,9.172e-05,2]
[334773666,1723546109953,-269.62,9.7e-05,2]
[334773667,1723546109977,-309.8,0.00010064,2]
[334773668,1723546109998,-8785.8534248,0.000101,2]
[334773669,1723546110020,-353.7265752,0.00010151,2]
[334773687,1723546231540,-250.0,9.971e-05,2]
[334773689,1723546231550,-358.4,0.00010012,2]
[334773691,1723546231560,-300.0,0.00010014,2]
[334773693,1723546231570,-48.29375819,0.00010015,2]
[334773695,1723546231582,-9654.44624181,0.00010015,2]
[334773697,1723546231592,-646.2734248,0.00010151,2]
[334773699,1723546231601,-4736.2659,0.000102,2]
[334773701,1723546231611,-500.0,0.00010297,2]
[334773703,1723546231621,-1250.65459456,0.00010297,2]
[334773705,1723546231630,-2400.0,0.000103,3]
[334773707,1723546231643,-4900.0,0.000104,3]
[334773709,1723546231652,-7400.0,0.000105,3]
[334773711,1723546231662,-9900.0,0.000106,3]
[334773712,1723546231671,-12400.0,0.000107,3]
[334773713,1723546231680,-2400.0,0.000108,3]
[334773714,1723546231690,-150.0,0.00010889,2]
[334773715,1723546231700,-5081.5,0.0001089,2]
[334773716,1723546231710,-499.99,0.0001089,2]
[334773717,1723546231720,-782.46178449,0.0001089,2]
[334773718,1723546231730,-70395.0079,0.0001089,2]
[334773719,1723546231739,-8229.3478,0.0001089,2]
[334773720,1723546231749,-152.67384191,0.000109,2]
[334773721,1723546231758,-2400.0,0.000109,3]
[334773722,1723546231768,-322.81251756,0.000109,2]
[334773723,1723546231777,-3320.68457414,0.000109,2]
[334773724,1723546231786,-250.0,0.00010959,2]
[334773725,1723546231796,-200.7247488,0.00010973,2]
[334773726,1723546231805,-300.44483766,0.00010973,2]
[334773727,1723546231814,-175.19,0.00010984,2]
[334773728,1723546231824,-782.0,0.00010986,2]
[334773729,1723546231833,-17768.22931944,0.00010986,2]
[334773730,1723546231845,-642.3977412,0.00010986,2]
[334773731,1723546231863,-2338.34835547,0.00010986,2]
[334773732,1723546231875,-4687.88496515,0.00010986,2]
[334773733,1723546231887,-678.69156372,0.00010986,2]
[334773734,1723546231898,-1074.32,0.00010986,2]
[334773735,1723546231910,-14259.07907785,0.00010986,2]
[334773736,1723546231921,-3702.08686573,0.00010986,2]
[334773740,1723546232022,-397.56791311,0.00010986,2]
[334773742,1723546232034,-4555.22356862,0.00010986,2]
[334773743,1723546232045,-3094.55064906,0.00010986,2]
[334773744,1723546232057,-994.65481035,0.00010986,2]
[334773745,1723546232068,-1184.24886143,0.00010986,2]
[334773746,1723546232079,-368.7704374,0.00010986,2]
[334773747,1723546232092,-8751.45447527,0.00010986,2]
[334773748,1723546232103,-2174.47,0.00010986,2]
[334773749,1723546237846,-1006.19139234,0.00010986,2]
[334773750,1723546237858,-467.23693735,0.00010986,2]
[334773751,1723546238046,-10441.17998013,0.00010986,2]
[334773752,1723546238059,-30577.41308638,0.00010986,2]
[334773753,1723546238068,-579.0,0.00010986,2]
[334773754,1723546238078,-168.05434707,0.00010987,2]
[334773755,1723546238088,-500.0,0.00010989,2]
[334773756,1723546238097,-351.59799162,0.00010989,2]
[334773757,1723546238106,-459.93083446,0.00010989,2]
[334773758,1723546238116,-293.12747687,0.00010989,2]
[334773759,1723546238125,-408.70465492,0.00010989,2]
[334773760,1723546238136,-500.0,0.00010989,2]
[334773761,1723546238146,-500.0,0.00010989,2]
[334773762,1723546238155,-500.0,0.00010989,2]
[334773763,1723546238165,-481.69194623,0.00010989,2]
[334773764,1723546238174,-220.18799402,0.00010989,2]
[334773765,1723546238183,-5249.48637883,0.00010989,2]
[334773766,1723546238192,-98375.18063547,0.0001099,2]
[334773772,1723546238397,-512841.40901899,0.0001099,2]
[334773774,1723546238408,-127736.19999999,0.0001099,2]
[334773776,1723546238419,-3513.2,0.0001099,2]
[334773778,1723546238430,-94909.66814021,0.0001099,2]
[334773780,1723546238442,-18580.03199997,0.0001099,2]
[334773860,1723546239809,-87384.01093072,0.0001099,2]
[334773861,1723546239820,-982.23475047,0.0001099,2]
[334773862,1723546239840,-641.94808312,0.0001099,2]
[334773863,1723546239850,-605.42191261,0.0001099,2]
[334773875,1723546242631,-1103.19432387,0.0001099,2]
[334773878,1723546242727,-1789.29207492,0.0001099,2]
[334773879,1723546242739,-1137.88598791,0.0001099,2]
[334773880,1723546242814,-735.896,0.0001099,2]
[334773881,1723546242826,-1719.99873845,0.0001099,2]
[334773882,1723546243008,-5687.31678633,0.0001099,2]
[334773884,1723546243023,-9291.90965979,0.0001099,2]
[334773886,1723546243034,-1838.78,0.0001099,2]
[334773896,1723546245733,-618.3903605,0.0001099,2]
[334773897,1723546245745,-583.91276707,0.0001099,2]
[334773898,1723546245756,-96684.08087998,0.0001099,2]
[334773899,1723546245766,-17664.67224727,0.00011,2]
[334773900,1723546245777,-854.0,0.00011,2]
[334773901,1723546245788,-1418.17641098,0.00011,2]
[334773902,1723546245799,-1963.28462603,0.00011,2]
[334773903,1723546245811,-20749.31061496,0.00011,2]
[334773904,1723546245822,-1239.88380057,0.00011,2]
[334773905,1723546245839,-873.74712415,0.00011,2]
[334773906,1723546245850,-4041.15744112,0.00011,2]
[334773907,1723546245861,-3299.11777029,0.00011,2]
[334773908,1723546246073,-400.0,0.00011,2]
[334773909,1723546246084,-805.58226419,0.00011,2]
[334773910,1723546246097,-438.217861,0.00011,2]
[334773911,1723546246108,-297.41662691,0.00011,2]
[334773912,1723546246118,-10391.97917367,0.00011,2]
[334773914,1723546246134,-3860.7078036,0.00011,2]
[334773916,1723546246147,-2458.01466891,0.00011,2]
[334773962,1723546959830,300.46,8.436e-05,2]
[334773970,1723547335672,-258.62,9.8e-05,2]
[334773971,1723547335699,-262.75,9.883e-05,2]
[334773972,1723547335726,-153.57974888,9.91e-05,2]
[334773973,1723547335754,-208.0,0.0001001,2]
[334773974,1723547335780,-250.0,0.00010029,2]
[334773975,1723547335807,-446.11,0.00010039,2]
[334773976,1723547335835,-975.8474813,0.00010069,2]
[334773977,1723547335872,-2554.90723018,0.00010069,2]
[334773978,1723547335904,-2554.90723018,0.00010069,2]
[334773979,1723547335938,-2554.90723018,0.00010069,2]
[334773980,1723547336159,-2554.90723018,0.00010069,2]
[334773981,1723547336193,-2554.90723018,0.00010069,2]
[334773982,1723547336224,-2554.90723018,0.00010069,2]
[334773983,1723547336257,-761.43635801,0.00010069,2]
[334773984,1723547336304,-2554.90723018,0.00010069,2]
[334773985,1723547336337,-225.63554943,0.00010069,2]
[334773986,1723547336365,-483.95,0.00010069,2]
[334773987,1723547336394,-800.0,0.00010157,2]
[334773988,1723547336422,-1045.32168075,0.00010206,2]
[334773989,1723547336459,-807.09831925,0.00010206,2]
[334773990,1723547336492,-150.0,0.00010224,2]
[334773991,1723547336519,-1455.41,0.00010225,2]
[334773992,1723547336547,-142.39891093,0.00010225,2]
[334773993,1723547336578,-327.25108907,0.00010225,2]
[334773994,1723547336605,-272.51,0.00010225,2]
[334773995,1723547336631,-580.56,0.00010225,2]
[334773996,1723547336659,-414.88201755,0.00010225,2]
[334773997,1723547336685,-200.0,0.00010271,2]
[334773998,1723547336712,-500.0,0.000103,3]
[334773999,1723547336741,-259.70412356,0.000104,3]
[334774000,1723547360771,-784.54643422,0.000104,3]
[334774006,1723547410775,-55.74944222,0.000104,3]
[334774007,1723547410806,-1442.5139178,0.000105,3]
[334774013,1723547431827,-157.4860822,0.000105,3]
[334774014,1723547431837,-2200.0,0.000106,3]
[334774015,1723547431846,-300.46,0.000107,2]
[334774016,1723547431856,-2185.94364684,0.000107,3]
[334774017,1723547431869,-514.05635316,0.000107,3]
[334774018,1723547431879,-500.0,0.000108,3]
[334774019,1723547431888,-1089.59454497,0.0001088,2]
[334774020,1723547431900,-588.74678369,0.0001088,2]
[334774021,1723547431911,-2937.00881223,0.0001088,2]
[334774022,1723547431922,-1217.85255911,0.0001088,2]
[334774023,1723547431931,-883.35,0.00010886,2]
[334774024,1723547431941,-322.06855872,0.00010886,2]
[334774025,1723547431951,-8095.1399,0.00010886,2]
[334774026,1723547431960,-1000.0,0.00010886,2]
[334774027,1723547431973,-346.94097141,0.00010886,2]
[334774028,1723547431989,-1676.12452515,0.00010886,2]
[334774029,1723547432000,-4852.7448324,0.00010886,2]
[334774030,1723547432012,-1330.28797104,0.00010886,2]
[334774031,1723547432022,-3334.93995684,0.00010899,2]
[334774032,1723547432031,-150.99,0.00010899,2]
[334774033,1723547432042,-2173.6263,0.000109,2]
[334774034,1723547432051,-184.29002284,0.000109,2]
[334774035,1723547432060,-4868.5919,0.000109,2]
[334774036,1723547432070,-178.81007375,0.000109,2]
[334774037,1723547432080,-500.0,0.000109,3]
[334774038,1723547432089,-250.0,0.00010959,2]
[334774039,1723547432099,-153.69611438,0.00010977,2]
[334774040,1723547432108,-189.9431911,0.00010979,2]
[334774041,1723547432117,-500.0,0.00010979,2]
[334774042,1723547432127,-500.0,0.00010979,2]
[334774043,1723547432137,-500.0,0.00010979,2]
[334774044,1723547432146,-500.0,0.00010979,2]
[334774045,1723547432156,-500.0,0.00010979,2]
[334774046,1723547432165,-219.85756528,0.00010979,2]
[334774047,1723547432175,-500.0,0.00010979,2]
[334774048,1723547432184,-25256.86130229,0.0001098,2]
[334774049,1723547432196,-971.11180087,0.0001098,2]
[334774050,1723547432222,-628.42,0.0001098,2]
[334774051,1723547432233,-326.80050338,0.0001098,2]
[334774052,1723547432244,-69241.98744884,0.0001098,2]
[334774053,1723547432255,-806.59811442,0.0001098,2]
[334774060,1723547438007,-343.26358931,0.0001098,2]
[334774061,1723547438149,-1721720.01058336,0.0001098,2]
[334774062,1723547438158,-154395.0,0.00010986,2]
[334774063,1723547438168,-8925.23,0.00010986,2]
[334774064,1723547438177,-294459.32734493,0.00011,2]
[334774065,1723547438186,-202809.49200352,0.00011,2]
[334774066,1723547438197,-14042.43253206,0.00011,2]
[334774067,1723547438217,-1886.88,0.00011,2]
[334774068,1723547438232,-409.83174484,0.00011,2]
[334774069,1723547438243,-1120.66502401,0.00011,2]
[334774070,1723547438253,-12212.22040255,0.00011,2]
[334774071,1723547438349,-39805.12114045,0.00011,2]
[334774072,1723547438360,-15119.4000222,0.00011,2]
[334774073,1723547438371,-1527.0295442,0.00011,2]
[334774074,1723547438387,-20501.00796055,0.00011,2]
[334774075,1723547438398,-998.52381322,0.00011,2]
[334774076,1723547438409,-60499.99999996,0.00011,2]
[334774162,1723547439964,-7939.06706332,0.00011,2]
[334774164,1723547439977,-1256825.15197023,0.00011,2]
[334774167,1723547439989,-25360.76951518,0.00011,2]
[334774169,1723547440001,-3536.06282993,0.00011,2]
[334774171,1723547440012,-527.39556223,0.00011,2]
[334774173,1723547440024,-1048.582763,0.00011,2]
[334774175,1723547440035,-846.52210567,0.00011,2]
[334774178,1723547440046,-8602.52214844,0.00011,2]
[334774180,1723547440057,-1102.45451024,0.00011,2]
[334774182,1723547440068,-927.22751103,0.00011,2]
[334774184,1723547440079,-14528.82706611,0.00011,2]
[334774196,1723547440186,-327.62877039,0.00011,2]
[334774198,1723547440198,-336.74720024,0.00011,2]
[334774200,1723547440209,-735.2,0.00011,2]
[334774202,1723547440221,-1660.19420176,0.00011,2]
[334774205,1723547440235,-1370.37733886,0.00011,2]
[334774207,1723547440254,-500.0,0.00011,2]
[334774209,1723547440265,-681.43362743,0.00011,2]
[334774211,1723547440276,-147513.1394155,0.00011,2]
[334774214,1723547440287,-11781.5698,0.00011,2]
[334774216,1723547440299,-384.644286,0.00011,2]
[334774218,1723547440310,-15122.18966287,0.00011,2]
[334774220,1723547440321,-2353.842567,0.00011,2]
[334774222,1723547440333,-537.31911778,0.00011,2]
[334774224,1723547440344,-6496.46948832,0.00011,2]
[334774226,1723547440355,-511.70455756,0.00011,2]
[334774229,1723547440371,-404.63865077,0.00011,2]
[334774231,1723547440387,-1202.16487984,0.00011,2]
[334774233,1723547440398,-707.12336694,0.00011,2]